bitfinex-derivatives/quotes_ETHF0:USTF0_20251107
["timestamp","ask_amount","ask_price","bid_price","bid_amount"]
[1762532193955,0.49458,3277.9,3277.8,0.73569]
[1762532194464,0.00850734,3278.0,3277.9,0.86648]
[1762532194657,0.50307734,3278.0,3277.9,0.86648]
[1762532194860,0.00850734,3278.0,3277.4,3.2078]
[1762532195058,0.49462,3277.7,3277.6,0.49461]
[1762532195360,0.49464,3277.6,3277.5,0.49464]
[1762532195861,0.4946,3277.8,3277.7,0.49461]
[1762532196050,0.00850734,3278.0,3277.9,0.49458]
[1762532196256,0.00850734,3278.0,3277.8,0.73569]
[1762532196456,0.00850734,3278.0,3277.9,0.49458]
[1762532196663,0.00850734,3278.0,3277.9,0.86648]
[1762532197366,0.50307734,3278.0,3277.9,0.86648]
[1762532197567,0.50307734,3278.0,3277.9,0.3719]
[1762532197760,0.00850734,3278.0,3277.4,3.2078]
[1762532197958,0.00850734,3278.0,3277.7,0.3719]
[1762532198166,0.00850734,3278.0,3277.9,0.3719]
[1762532198359,0.00850734,3278.0,3277.9,0.86648]
[1762532198858,0.50307734,3278.0,3277.9,0.3719]
[1762532199065,0.49458,3277.9,3277.8,0.2411]
[1762532199262,0.49458,3277.9,3277.8,0.7357]
[1762532199463,0.00850734,3278.0,3277.9,0.49458]
[1762532199861,0.00850734,3278.0,3277.9,0.86648]
[1762532201563,0.50307734,3278.0,3277.9,0.86648]
[1762532201761,0.49458,3277.9,3277.8,0.2411]
[1762532202158,0.49464,3277.5,3277.4,3.2078]
[1762532202458,0.4947,3277.1,3277.0,0.00341514]
[1762532202666,3.2078,3277.1,3277.0,0.49813514]
[1762532202858,0.00850734,3278.0,3277.0,0.49813514]
[1762532202859,0.49464,3277.5,3277.3,0.49466]
[1762532203067,0.49464,3277.5,3277.4,0.3867]
[1762532203257,0.49467,3277.3,3277.2,0.2209]
[1762532203664,3.2078,3277.5,3277.4,0.49466]
[1762532203970,0.00850734,3278.0,3277.2,0.2209]
[1762532203971,3.70239,3277.9,3277.2,0.2209]
[1762532204160,3.70239,3277.9,3277.2,0.71557]
[1762532204161,0.4946,3277.8,3277.2,0.71557]
[1762532204364,3.2078,3277.9,3277.3,0.49467]
[1762532204565,0.49466,3277.4,3277.3,0.49467]
[1762532205066,0.49466,3277.4,3277.2,0.71559]
[1762532205266,0.49467,3277.3,3277.2,0.2209]
[1762532205971,3.2078,3277.9,3277.3,0.49466]
[1762532206167,0.49464,3277.5,3277.4,0.49464]
[1762532206368,0.49467,3277.3,3277.2,0.2209]
[1762532206568,0.49466,3277.5,3277.4,0.49466]
[1762532206872,0.49468,3277.3,3277.2,0.49467]
[1762532207166,3.2078,3277.9,3277.0,0.00341514]
[1762532207367,0.4947,3277.2,3277.1,0.4947]
[1762532207767,0.4947,3277.1,3277.0,0.49813514]
[1762532207972,0.49469,3277.2,3277.1,0.49468]
[1762532208983,3.2078,3277.5,3277.4,0.49466]
[1762532209374,0.49467,3277.4,3277.3,0.49467]
[1762532209574,0.4947,3277.1,3277.0,0.49811514]
[1762532210075,0.49468,3277.3,3277.2,1.10227]
[1762532210574,3.2078,3277.5,3277.4,0.88136]
[1762532210973,0.50307734,3278.0,3277.9,0.88128]
[1762532211173,0.49458,3277.9,3277.8,0.2209]
[1762532211372,0.49458,3277.9,3277.8,0.7155]
[1762532211781,3.2078,3277.9,3277.2,2.40847196]
[1762532211980,0.49467,3277.4,3277.3,0.49467]
[1762532212182,0.49465,3277.5,3277.4,0.49464]
[1762532212474,0.49458,3277.9,3277.8,0.2209]
[1762532212675,0.00850734,3278.0,3277.8,0.2209]
[1762532212871,0.49458,3277.9,3277.8,0.2209]
[1762532213383,0.49467,3277.3,3277.2,0.2209]
[1762532213579,0.49467,3277.3,3277.1,3.2078]
[1762532213580,0.49469,3277.2,3277.1,3.2078]
[1762532214082,0.49467,3277.4,3277.3,0.3867]
[1762532214477,3.21630734,3278.0,3277.1,3.2078]
[1762532214478,0.49469,3277.2,3277.1,3.2078]
[1762532214678,3.21630734,3278.0,3277.1,3.2078]
[1762532214877,3.71087734,3278.0,3277.6,0.88133]
[1762532215072,3.21630734,3278.0,3277.6,0.3867]
[1762532215283,3.21630734,3278.0,3277.5,0.2209]
[1762532215481,0.49463,3277.6,3277.5,0.2209]
[1762532215680,0.49463,3277.6,3277.5,0.71554]
[1762532215886,0.49463,3277.6,3277.5,1.10224]
[1762532216180,0.4946,3277.9,3277.8,0.84189]
[1762532216477,0.49463,3277.6,3277.5,0.5682]
[1762532216684,0.49463,3277.6,3277.5,0.2209]
[1762532218183,0.49469,3277.2,3277.1,3.2078]
[1762532218889,0.49469,3277.2,3277.1,3.7025]
[1762532219487,0.49465,3277.4,3277.2,0.84196]
[1762532219696,0.49458,3277.9,3277.8,0.49457]
[1762532219994,0.49458,3277.8,3277.7,0.8419]
[1762532220196,0.50306734,3278.0,3277.9,0.49457]
[1762532220383,0.50305734,3278.0,3277.9,0.84187]
[1762532220588,0.50305734,3278.0,3277.9,0.3473]
[1762532220785,0.00850734,3278.0,3277.9,0.84187]
[1762532221196,0.00850734,3278.0,3277.9,4.04967]
[1762532221788,3.2078,3278.8,3278.5,0.2099]
[1762532221991,3.2078,3278.8,3278.7,0.84175]
[1762532222190,3.2078,3279.3,3279.2,0.84167]
[1762532222401,3.2078,3280.1,3279.6,0.2099]
[1762532222593,3.2078,3280.5,3279.6,3.912]
[1762532222788,3.2110896,3280.5,3279.7,0.00457659]
[1762532222994,0.3375,3279.8,3279.7,0.00457659]
[1762532223796,0.49428,3279.9,3279.7,0.00457659]
[1762532224191,0.49427,3279.9,3279.7,0.00457659]
[1762532224602,0.3375,3279.8,3279.7,0.00457659]
[1762532225500,0.49425,3280.0,3279.7,0.00457659]
[1762532225798,3.2078,3280.1,3279.7,0.00457659]
[1762532225799,0.49428,3279.9,3279.7,0.00457659]
[1762532226000,0.49426,3280.0,3279.9,0.49427]
[1762532226207,0.49427,3279.9,3279.7,0.00457659]
[1762532226400,0.49425,3280.1,3279.9,0.49427]
[1762532226698,0.49425,3280.0,3279.7,0.00457659]
[1762532226905,0.49427,3279.9,3279.8,0.3473]
[1762532227201,3.21237659,3280.4,3280.0,0.49425]
[1762532227202,0.49425,3280.1,3280.0,0.49425]
[1762532227400,0.49422,3280.3,3280.1,0.49422]
[1762532227606,3.21237659,3280.4,3280.3,0.84151]
[1762532227804,0.00457659,3280.4,3280.3,0.84151]
[1762532228306,0.0032896,3280.5,3280.4,0.84149]
[1762532228501,3.2078,3281.7,3280.2,0.2099]
[1762532228712,3.2078,3282.1,3281.6,0.49401]
[1762532229001,3.70174,3282.1,3282.0,0.2099]
[1762532229204,3.2078,3282.6,3282.0,0.70385]
[1762532229602,0.49392,3282.2,3282.0,0.21344591]
[1762532229803,0.49391,3282.3,3282.1,0.49393]
[1762532230202,3.21022356,3282.6,3282.0,0.21344591]
[1762532230403,0.49393,3282.2,3282.0,0.21344591]
[1762532230602,3.70173,3282.2,3282.0,0.00354591]
[1762532230800,0.3375,3282.1,3282.0,0.00354591]
[1762532231703,3.70173,3282.2,3282.0,0.00354591]
[1762532232404,0.49393,3282.2,3282.0,0.00354591]
[1762532232703,3.21022356,3282.6,3282.1,0.49393]
[1762532232902,3.21022356,3282.6,3282.0,0.21344591]
[1762532233099,0.49392,3282.2,3282.1,0.49393]
[1762532233300,3.21022356,3282.6,3282.4,0.49388]
[1762532233496,3.21022356,3282.6,3282.5,0.3473]
[1762532233900,0.00242356,3282.6,3282.5,0.3473]
[1762532234102,3.21022356,3282.6,3282.0,3.42124591]
[1762532234298,0.49392,3282.2,3282.0,0.21344591]
[1762532235204,0.3375,3282.1,3282.0,0.00354591]
[1762532235703,3.70172,3282.2,3282.0,0.00354591]
[1762532235899,3.70172,3282.2,3282.0,0.21344591]
[1762532236096,3.21022356,3282.6,3282.4,0.49388]
[1762532236301,0.49389,3282.4,3282.1,3.70172]
[1762532236503,0.3375,3282.2,3282.0,0.00354591]
[1762532236703,0.83144,3282.1,3282.0,0.00354591]
[1762532237505,3.2078,3282.2,3282.1,0.84124]
[1762532237703,0.4939,3282.4,3282.3,0.4939]
[1762532238009,0.00242356,3282.6,3282.3,0.49389]
[1762532238205,0.00242356,3282.6,3282.5,0.84118]
[1762532238906,2.356e-05,3282.6,3282.5,14.93398]
[1762532239107,2.356e-05,3282.6,3282.5,18.14178]
[1762532239606,2.356e-05,3282.6,3282.5,3.5551]
[1762532239802,2.356e-05,3282.6,3282.5,4.04898]
[1762532240003,2.356e-05,3282.6,3282.5,3.5551]
[1762532240304,2.356e-05,3282.6,3282.5,4.04898]
[1762532240507,3.2078,3283.7,3283.3,0.49375]
[1762532240906,3.2078,3283.7,3283.2,0.2099]
[1762532241106,0.49373,3283.5,3283.2,0.2099]
[1762532241513,0.49705753,3283.5,3283.2,0.2099]
[1762532241721,0.00331753,3283.5,3283.2,0.2099]
[1762532242011,0.49374,3283.4,3283.2,0.2099]
[1762532242407,0.00331753,3283.5,3282.9,3.2078]
[1762532242817,0.00331753,3283.5,3282.9,3.70161]
[1762532243009,0.49374,3283.4,3283.0,0.4938]
[1762532243209,0.00331753,3283.5,3283.2,0.70367]
[1762532243512,0.49704753,3283.5,3283.2,0.70367]
[1762532243710,0.00331753,3283.5,3283.4,0.84104]
[1762532243908,0.00331753,3283.5,3283.4,0.3473]
[1762532244108,0.00331753,3283.5,3283.2,0.2099]
[1762532244509,0.00331753,3283.5,3283.0,0.4938]
[1762532244707,0.49377,3283.2,3282.9,3.2078]
[1762532244916,0.00331753,3283.5,3283.2,0.2099]
[1762532245114,0.49374,3283.4,3283.2,0.70367]
[1762532245310,3.2078,3283.3,3283.2,0.2099]
[1762532245515,0.1556,3283.2,3282.1,3.2078]
[1762532245713,3.2078,3282.9,3282.1,3.2078]
[1762532245918,3.2078,3283.3,3282.6,0.2099]
[1762532246116,3.2078,3283.3,3282.8,0.49382]
[1762532246310,3.70157,3283.3,3282.8,0.49384]
[1762532246615,0.00331753,3283.5,3283.4,0.82435]
[1762532246819,3.2078,3284.2,3284.1,0.49364]
[1762532247013,0.49366,3284.1,3283.8,0.67915955]
[1762532247219,0.80907,3283.9,3283.8,0.00456955]
[1762532247913,0.81162677,3283.9,3283.8,0.00456955]
[1762532248725,8.81162677,3283.9,3283.8,0.00456955]
[1762532248917,0.4938,3283.1,3282.7,3.2078]
[1762532249118,0.49378,3283.3,3283.0,0.3306]
[1762532249318,0.49379,3283.1,3283.0,0.3306]
[1762532249522,3.2078,3283.5,3282.8,0.49383]
[1762532249918,0.49377,3283.3,3282.8,0.00456955]
[1762532250120,0.49379,3283.2,3282.9,0.49382]
[1762532250322,0.49376,3283.4,3283.1,0.49378]
[1762532250521,3.21234608,3283.5,3283.1,0.49378]
[1762532250825,0.49378,3283.3,3283.2,0.1809]
[1762532251520,0.80472,3282.9,3282.8,0.00456955]
[1762532251721,0.49382,3282.9,3282.8,0.00456955]
[1762532251924,0.49381,3283.0,3282.8,0.00456955]
[1762532252220,0.49382,3282.9,3282.8,0.00456955]
[1762532252422,3.21234608,3283.5,3282.8,0.00456955]
[1762532252722,0.49382,3282.9,3282.8,0.00456955]
[1762532253520,0.49381,3283.0,3282.8,0.00456955]
[1762532253825,0.49381,3283.1,3282.9,0.49382]
[1762532254025,0.49382,3282.9,3282.8,0.00456955]
[1762532254527,4.01252,3282.9,3282.8,0.00456955]
[1762532255313,4.73603312,3282.9,3282.8,0.00456955]
[1762532256016,4.73603312,3282.9,3282.0,0.70739591]
[1762532256017,0.49394,3282.1,3282.0,0.00354591]
[1762532256218,4.01264,3282.1,3282.0,0.00354591]
[1762532256416,1.07069104,3282.7,3282.6,1.00537]
[1762532256621,3.2078,3283.1,3282.7,0.82445]
[1762532256622,0.72463757,3282.8,3282.7,0.82445]
[1762532256815,3.2078,3283.1,3282.6,0.1809]
[1762532257018,3.2078,3283.1,3283.0,0.82441]
[1762532257223,3.21234608,3283.5,3283.2,0.67467]
[1762532257426,0.72594334,3283.4,3283.2,0.1809]
[1762532257624,0.72594334,3283.4,3283.3,0.49376]
[1762532257820,0.72594334,3283.4,3283.3,0.82436]
[1762532258021,0.72594334,3283.4,3283.2,0.67467]
[1762532258220,0.72594334,3283.4,3283.3,0.49376]
[1762532258523,0.72594334,3283.4,3283.3,0.82436]
[1762532258822,0.00454608,3283.5,3283.4,0.82435]
[1762532259016,0.00454608,3283.5,3283.4,0.3306]
[1762532259220,0.00454608,3283.5,3283.4,0.82435]
[1762532259626,0.00454608,3283.5,3283.2,3.3887]
[1762532259831,0.49828608,3283.5,3283.2,0.1809]
[1762532260021,0.00454608,3283.5,3283.2,0.67468]
[1762532260219,0.49375,3283.4,3283.2,0.1809]
[1762532260422,0.72590436,3283.3,3282.8,3.2078]
[1762532260622,0.4938,3283.1,3282.8,3.70164]
[1762532260925,3.2078,3283.4,3282.6,0.1809]
[1762532260926,0.49384,3282.8,3282.7,0.3162]
[1762532261226,3.2078,3283.4,3282.7,0.81005]
[1762532261427,0.49381,3283.0,3282.7,0.81005]
[1762532261617,0.49381,3283.0,3282.7,0.3162]
[1762532261821,0.49382,3282.9,3282.7,0.3162]
[1762532262028,0.49382,3282.9,3282.6,0.1809]
[1762532262226,0.49387,3282.6,3282.5,0.00456955]
[1762532262429,0.49385,3282.7,3282.6,0.1845]
[1762532262624,1.07069104,3283.3,3282.6,0.1845]
[1762532262625,0.49384,3282.9,3282.6,0.1845]
[1762532262926,1.21927592,3282.8,3282.6,0.1845]
[1762532263229,0.49384,3282.8,3282.6,0.1845]
[1762532263428,0.49382,3283.0,3282.6,0.1845]
[1762532263628,0.72573174,3282.9,3282.7,0.49385]
[1762532263928,0.49386,3282.7,3282.6,0.1845]
[1762532265329,0.2658,3282.6,3282.5,0.00456955]
[1762532265529,1.48578461,3282.6,3282.5,0.00456955]
[1762532265739,0.75975,3282.1,3282.0,0.00354591]
[1762532266030,1.48586461,3282.1,3282.0,0.00354591]
[1762532266235,0.72611461,3282.1,3282.0,0.18804591]
[1762532266627,1.22006461,3282.1,3282.0,0.18804591]
[1762532267034,1.22006461,3282.1,3282.0,0.00354591]
[1762532267931,1.48586461,3282.1,3282.0,0.00354591]
[1762532268333,1.08063545,3282.8,3282.6,0.1845]
[1762532268529,1.08063545,3282.8,3282.0,0.18804591]
[1762532268530,0.2658,3282.1,3282.0,0.00354591]
[1762532268736,1.48567818,3282.1,3282.0,0.00354591]
[1762532269535,4.69347818,3282.1,3282.0,0.00354591]
[1762532269732,0.1599,3282.0,3281.0,3.2078]
[1762532270037,3.2078,3281.6,3281.0,3.2078]
[1762532270334,0.72592818,3281.5,3281.0,3.2078]
[1762532270631,3.2078,3281.2,3281.0,0.00248681]
[1762532270837,1.48482113,3281.1,3281.0,0.00248681]
[1762532271334,0.75992,3281.0,3280.9,0.00456955]
[1762532271533,1.48411992,3281.0,3280.9,0.00456955]
[1762532271834,0.75992,3281.0,3280.9,0.00456955]
[1762532272535,0.75992,3281.0,3280.9,0.00774106]
[1762532273633,0.49422,3280.3,3280.2,0.1845]
[1762532274133,0.2556,3280.2,3280.0,0.49426]
[1762532274540,0.2556,3280.2,3279.9,0.49428]
[1762532274730,3.2078,3280.5,3279.9,0.00384864]
[1762532275328,0.49425,3280.1,3279.9,0.49812864]
[1762532275531,0.49425,3280.1,3279.9,0.00384864]
[1762532276842,3.2078,3280.5,3280.2,0.66823]
[1762532277139,0.49421,3280.4,3280.2,0.174]
[1762532277527,0.49421,3280.4,3280.2,0.66824]
[1762532277728,3.2078,3280.5,3280.3,0.49422]
[1762532278136,3.2078,3280.5,3280.4,0.77971]
[1762532278441,3.2078,3280.9,3280.8,0.95365]
[1762532278836,3.2078,3281.4,3281.3,0.77957]
[1762532279239,3.2078,3281.4,3281.3,0.49407]
[1762532279439,3.2078,3281.4,3280.8,0.174]
[1762532279834,0.00255903,3281.5,3281.4,0.66806]
[1762532280337,0.49409,3281.2,3281.0,3.2078]
[1762532280540,0.49406,3281.4,3280.8,0.174]
[1762532280741,0.00255903,3281.5,3280.8,0.174]
[1762532281329,0.00255903,3281.5,3281.4,0.95356]
[1762532281546,0.00255903,3281.5,3281.4,4.16136]
[1762532282733,0.00456955,3281.6,3281.5,0.77954]
[1762532282933,3.2078,3282.6,3282.5,0.2855]
[1762532283135,3.2078,3283.4,3283.3,0.49377]
[1762532283438,3.2078,3283.4,3282.6,0.174]
[1762532283640,0.24742827,3284.6,3282.1,3.2078]
[1762532283641,0.49389,3282.5,3282.1,3.2078]
[1762532283942,0.00379822,3282.5,3282.1,3.21073247]
[1762532284143,0.00379822,3282.5,3282.4,0.2855]
[1762532284531,0.00379822,3282.5,3282.3,0.49392]
[1762532284735,0.00379822,3282.5,3282.4,0.2855]
[1762532285441,0.00379822,3282.5,3282.1,3.21073247]
[1762532285442,0.00379822,3282.5,3282.3,0.49392]
[1762532285736,1.71753657,3284.4,3283.2,0.174]
[1762532285737,0.49376,3283.4,3283.2,0.174]
[1762532286041,3.70154,3283.5,3283.2,0.174]
[1762532286242,3.70154,3283.5,3283.2,0.66779]
[1762532286442,3.2078,3283.5,3283.3,0.49376]
[1762532286643,3.2078,3283.5,3283.4,0.2855]
[1762532286835,3.21033879,3283.5,3283.2,0.174]
[1762532287342,0.00253879,3283.5,3283.4,0.77926]
[1762532287739,0.00253879,3283.5,3283.2,0.174]
[1762532288042,0.00253879,3283.5,3283.3,0.49377]
[1762532288241,0.00253879,3283.5,3283.4,0.49376]
[1762532288441,0.00253879,3283.5,3283.2,0.174]
[1762532288647,0.49376,3283.4,3283.2,0.66777]
[1762532289039,0.49378,3283.3,3283.2,0.174]
[1762532289240,0.00253879,3283.5,3282.8,0.49385]
[1762532289539,0.00253879,3283.5,3282.7,3.2078]
[1762532289540,3.70159,3283.2,3282.7,3.2078]
[1762532289840,0.49384,3282.9,3282.7,3.70166]
[1762532290341,0.00253879,3283.5,3283.4,0.77927]
[1762532290547,3.70142,3284.4,3284.2,0.49364]
[1762532290842,3.2078,3284.4,3283.9,0.49368]
[1762532291043,3.2078,3284.4,3283.8,3.3818]
[1762532291436,3.21548962,3284.4,3284.3,0.49363]
[1762532291643,0.00768962,3284.4,3284.3,0.77913]
[1762532292340,0.50130962,3284.4,3284.3,0.49363]
[1762532292537,0.50130962,3284.4,3284.2,0.49365]
[1762532292737,0.49365,3284.2,3283.8,3.38636955]
[1762532293038,0.70729,3283.9,3283.8,0.00456955]
[1762532293238,3.70148,3284.0,3283.8,0.00456955]
[1762532293445,0.2136,3283.9,3283.8,0.00456955]
[1762532293852,3.70148,3284.0,3283.8,0.00456955]
[1762532294144,0.2136,3283.9,3283.8,0.00456955]
[1762532294743,0.70729,3283.9,3283.8,0.00456955]
[1762532295447,8.70729,3283.9,3283.8,0.00456955]
[1762532295746,0.70729,3283.9,3283.8,0.00456955]
[1762532295949,0.49369,3283.9,3283.8,0.00456955]
[1762532296346,0.70729,3283.9,3283.8,0.00456955]
[1762532296944,0.49383,3283.0,3282.9,3.70165]
[1762532297244,0.49381,3283.2,3283.1,0.49381]
[1762532297438,0.49383,3283.0,3282.9,3.2078]
[1762532298150,0.49382,3283.1,3283.0,0.49382]
[1762532298541,3.2078,3283.7,3283.3,0.49379]
[1762532298852,0.49377,3283.4,3283.3,0.49379]
[1762532299347,0.49379,3283.3,3283.2,0.174]
[1762532299538,3.70154,3283.7,3283.6,0.49374]
[1762532299943,0.49375,3283.6,3283.5,0.49375]
[1762532300138,0.49375,3283.6,3283.2,0.174]
[1762532300139,3.2078,3284.1,3283.3,3.2078]
[1762532300344,3.2078,3284.1,3284.0,0.49368]
[1762532300551,0.4937,3284.0,3283.9,0.4937]
[1762532301551,3.2078,3284.1,3284.0,0.49368]
[1762532301752,0.49369,3284.0,3283.8,0.174]
[1762532301955,3.2078,3284.1,3284.0,0.49368]
[1762532302145,3.70147,3284.1,3284.0,0.49368]
[1762532302448,3.70147,3284.1,3283.8,0.174]
[1762532302653,3.2078,3284.1,3283.8,0.174]
[1762532302947,3.2078,3284.1,3284.0,0.49368]
[1762532303149,0.4937,3283.9,3283.3,3.2078]
[1762532303348,0.49368,3284.0,3283.8,0.66771]
[1762532303652,0.49368,3284.0,3283.9,0.49369]
[1762532303853,3.2078,3284.1,3283.9,0.49369]
[1762532304049,3.2078,3284.1,3283.3,3.2078]
[1762532304255,0.49373,3283.7,3283.6,0.49373]
[1762532304457,0.49371,3283.9,3283.7,0.49372]
[1762532304654,0.49371,3283.8,3283.7,0.49372]
[1762532304851,3.2078,3284.1,3283.3,3.2078]
[1762532305152,3.2078,3284.1,3284.0,0.49368]
[1762532305351,0.49369,3284.0,3283.8,0.6677]
[1762532305554,3.2078,3284.1,3283.8,0.6677]
[1762532305555,3.2078,3284.1,3284.0,0.49368]
[1762532305857,3.2078,3284.1,3284.0,0.77918]
[1762532306254,0.00768962,3284.4,3284.3,0.75654]
[1762532306860,0.00768962,3284.4,3284.3,0.49364]
[1762532307154,0.00768962,3284.4,3283.8,0.174]
[1762532307357,3.2078,3284.2,3283.3,0.49379]
[1762532307658,0.49379,3283.3,3283.2,0.66779]
[1762532308358,0.49377,3283.4,3283.3,0.49377]
[1762532308558,0.49375,3283.6,3283.5,0.49376]
[1762532309357,3.2078,3283.8,3283.2,0.174]
[1762532309358,0.49376,3283.5,3283.2,0.174]
[1762532309559,0.49377,3283.4,3283.3,0.49378]
[1762532309957,0.49376,3283.6,3283.4,0.49377]
[1762532310262,3.2078,3283.8,3283.2,0.174]
[1762532310558,0.49386,3282.8,3282.7,3.2078]
[1762532310763,3.2078,3283.3,3282.3,3.2078]
[1762532311060,3.70168,3282.7,3282.4,0.49392]
[1762532311262,3.70168,3282.7,3282.6,0.00456955]
[1762532311861,0.49387,3282.8,3282.6,0.65035955]
[1762532312163,0.49388,3282.7,3282.6,0.15646955]
[1762532312664,0.49384,3283.0,3282.9,0.2629]
[1762532312858,3.2078,3283.1,3282.6,0.15646955]
[1762532313050,0.49377,3283.4,3283.0,0.2629]
[1762532313258,3.2078,3283.5,3283.4,0.75667]
[1762532314158,0.1266,3283.3,3282.7,5.39537196]
[1762532314462,0.62048,3282.7,3282.6,0.00456955]
[1762532314652,3.82828,3282.7,3282.6,0.00456955]
[1762532315056,4.56480061,3282.7,3282.6,0.00456955]
[1762532315256,3.82828,3282.7,3282.6,0.00456955]
[1762532316061,0.61594,3282.2,3282.1,0.00293247]
[1762532316263,11.9437166,3282.2,3280.8,0.1519]
[1762532316469,0.49414,3280.9,3280.8,0.1519]
[1762532316660,3.2078,3281.5,3280.2,3.3597]
[1762532316963,0.49412,3281.1,3280.8,0.1519]
[1762532317264,0.49650971,3281.1,3280.8,0.64886172]
[1762532317562,3.2078,3281.9,3281.4,0.1519]
[1762532318060,3.2078,3281.5,3280.8,0.15471172]
[1762532318265,0.49409,3281.3,3281.0,0.49412]
[1762532318463,0.49646642,3281.3,3281.0,0.49412]
[1762532318665,0.49409,3281.2,3281.0,0.49412]
[1762532318859,0.00238642,3281.3,3281.0,0.49412]
[1762532319071,0.00456955,3281.5,3281.4,0.4148]
[1762532319474,3.2078,3282.3,3281.4,11.3597]
[1762532319675,0.49394,3282.2,3282.0,0.1519]
[1762532319868,3.2078,3282.3,3282.1,0.49395]
[1762532320073,3.21153717,3282.3,3282.1,0.49395]
[1762532320568,0.00373717,3282.3,3282.2,0.2685]
[1762532321070,0.00373717,3282.3,3282.2,8.2685]
[1762532321276,0.00373717,3282.3,3282.2,11.4763]
[1762532321677,0.00373717,3282.3,3282.2,17.5699]
[1762532322076,0.00456955,3282.5,3282.4,0.2685]
[1762532322273,0.00456955,3282.5,3282.4,0.76241]
[1762532322475,0.49378,3283.3,3283.2,0.1697]
[1762532323176,0.49708681,3283.3,3283.2,0.00371888]
[1762532323582,0.00330681,3283.3,3283.2,0.49750888]
[1762532323772,0.00330681,3283.3,3283.2,0.93570888]
[1762532324168,0.00330681,3283.3,3283.2,4.14350888]
[1762532324374,0.00454608,3283.6,3283.5,0.76225]
[1762532324577,0.00454608,3283.6,3283.2,3.38121888]
[1762532324771,0.00454608,3283.6,3283.5,0.76225]
[1762532325170,0.00454608,3283.6,3283.5,8.76225]
[1762532325382,3.2078,3284.8,3283.8,0.1697]
[1762532325582,0.49361,3284.5,3283.8,3.3775]
[1762532325774,0.49358,3284.7,3284.4,0.49361]
[1762532325977,0.4936,3284.5,3284.4,0.49361]
[1762532326175,3.2078,3284.8,3283.8,3.3775]
[1762532326385,3.21148373,3284.8,3283.9,0.49368]
[1762532326684,0.49366,3284.1,3283.8,3.87119]
[1762532326875,0.49366,3284.1,3283.8,3.3775]
[1762532327079,3.21148373,3284.8,3284.4,0.1697]
[1762532327472,0.4936,3284.5,3284.4,0.1697]
[1762532327674,0.4936,3284.5,3284.4,0.6633]
[1762532327876,3.21148373,3284.8,3283.8,3.3775]
[1762532328081,0.49378,3283.3,3283.2,0.17341888]
[1762532328271,3.87525,3283.5,3283.2,0.66720888]
[1762532328476,0.49376,3283.4,3283.2,0.66720888]
[1762532328676,3.2078,3283.9,3283.2,0.17341888]
[1762532328877,3.2078,3283.9,3283.8,0.1697]
[1762532329077,3.70149,3283.9,3283.8,0.1697]
[1762532329273,3.2078,3283.9,3283.3,0.49376]
[1762532329474,0.49376,3283.4,3283.2,0.17341888]
[1762532329882,0.49376,3283.4,3283.3,0.49378]
[1762532330088,0.49378,3283.3,3283.2,0.66720888]
[1762532330882,0.49376,3283.4,3283.3,0.49377]
[1762532331083,0.49374,3283.6,3283.4,0.49375]
[1762532331275,3.2078,3283.9,3283.2,0.17341888]
[1762532331480,0.49378,3283.3,3283.2,0.17341888]
[1762532331889,0.49378,3283.3,3283.2,0.66721888]
[1762532332291,0.49378,3283.3,3283.2,0.17341888]
[1762532332693,0.49378,3283.3,3283.2,0.66720888]
[1762532333186,3.2078,3284.0,3283.2,0.17341888]
[1762532333386,0.49376,3283.5,3283.4,0.49376]
[1762532333591,0.49375,3283.6,3283.4,0.49376]
[1762532333891,3.2078,3284.0,3283.2,0.17341888]
[1762532334091,3.2078,3284.0,3283.8,0.1697]
[1762532334290,3.2078,3284.0,3283.9,0.49369]
[1762532334488,3.2078,3284.0,3283.9,0.76219]
[1762532334695,3.70147,3284.0,3283.9,0.76219]
[1762532334891,3.2078,3284.4,3283.8,3.3775]
[1762532335194,3.2078,3284.4,3284.3,0.76213]
[1762532335587,3.70142,3284.4,3284.3,0.49363]
[1762532335995,3.2078,3284.4,3284.3,0.49363]
[1762532336196,0.49364,3284.3,3284.2,0.49363]
[1762532336394,0.49364,3284.3,3283.8,3.3775]
[1762532336395,3.70142,3284.4,3284.3,0.49363]
[1762532336589,3.70142,3284.4,3283.8,3.3775]
[1762532336891,0.49364,3284.3,3284.2,0.49364]
[1762532337791,0.49366,3284.1,3284.0,0.2685]
[1762532337990,0.49365,3284.2,3284.1,0.49365]
[1762532338188,0.49367,3284.1,3283.8,3.3775]
[1762532338391,3.2078,3284.4,3283.8,3.3775]
[1762532338692,0.49368,3284.0,3283.9,0.49368]
[1762532338892,0.49366,3284.2,3283.8,3.3775]
[1762532339088,3.70143,3284.4,3284.3,0.49363]
[1762532339292,0.49364,3284.3,3284.2,0.49364]
[1762532340193,0.49365,3284.2,3284.1,0.49365]
[1762532340785,3.2078,3284.4,3284.3,0.49363]
[1762532340988,3.2078,3285.7,3284.7,0.2437]
[1762532341293,3.2078,3286.1,3286.0,0.49338]
[1762532341506,3.2078,3286.1,3286.0,0.2437]
[1762532341793,0.1345,3287.4,3286.2,0.1537]
[1762532341998,5.8215,3288.0,3286.2,0.1537]
[1762532342193,3.2078,3286.5,3286.4,0.2437]
[1762532342497,3.2078,3287.0,3286.9,0.49324]
[1762532342798,0.49319,3287.3,3287.0,0.49322]
[1762532342992,3.2078,3287.4,3287.2,0.49319]
[1762532343193,3.2078,3287.8,3286.5,3.2078]
[1762532343389,3.2078,3287.4,3286.5,3.2078]
[1762532343585,0.49318,3287.3,3287.0,0.49321]
[1762532343792,3.2078,3287.4,3286.5,3.2078]
[1762532343992,3.2078,3287.8,3287.5,0.49314]
[1762532344197,3.2078,3287.8,3287.3,0.49317]
[1762532344397,0.49314,3287.6,3287.4,0.49316]
[1762532344595,0.49313,3287.6,3287.4,0.49316]
[1762532344799,3.2078,3287.8,3286.7,0.49327]
[1762532345098,3.2078,3287.8,3286.6,3.2078]